[Event "Titled Tuesday Blitz November 07 Early 2023"]
[White "Lobanov, Sergei"]
[Black "Tsydypov, Zhamsaran"]
[WhiteFideId "24183750"]
[BlackFideId "4108566"]
[WhiteElo "2842"]
[BlackElo "3009"]
[Result "1/2-1/2"]
[Round "9"]
[TimeControl "180+1"]
[Date "2023.11.07"]
[WhiteClock "0:00:29"]
[BlackClock "0:01:15"]
[Board "13"]

1. d4 {[%clk 0:03:00]}  Nf6 {[%clk 0:02:59]} 2. c4 {[%clk 0:03:01]}  g6 {[%clk 0:02:59]} 3. Nc3 {[%clk 0:03:02]}  d5 {[%clk 0:03:00]} 4. cxd5 {[%clk 0:03:02]}  Nxd5 {[%clk 0:03:00]} 5. e4 {[%clk 0:03:02]}  Nxc3 {[%clk 0:03:00]} 6. bxc3 {[%clk 0:03:03]}  Bg7 {[%clk 0:03:01]} 7. Nf3 {[%clk 0:03:04]}  c5 {[%clk 0:03:01]} 8. Bb5+ {[%clk 0:03:04]}  Nc6 {[%clk 0:03:00]} 9. Bxc6+ {[%clk 0:03:04]}  bxc6 {[%clk 0:03:00]} 10. O-O {[%clk 0:03:05]}  O-O {[%clk 0:03:01]} 11. Qc2 {[%clk 0:03:05]}  cxd4 {[%clk 0:02:58]} 12. cxd4 {[%clk 0:03:06]}  Bg4 {[%clk 0:02:58]} 13. Ne5 {[%clk 0:03:06]}  Bxe5 {[%clk 0:02:51]} 14. dxe5 {[%clk 0:03:06]}  Qb6 {[%clk 0:02:49]} 15. Be3 {[%clk 0:03:03]}  Qa6 {[%clk 0:02:47]} 16. h3 {[%clk 0:02:23]}  Be2 {[%clk 0:02:47]} 17. Rfe1 {[%clk 0:02:20]}  Bd3 {[%clk 0:02:46]} 18. Qc5 {[%clk 0:02:15]}  Rfe8 {[%clk 0:02:43]} 19. Bg5 {[%clk 0:02:15]}  Qb5 {[%clk 0:02:31]} 20. Rac1 {[%clk 0:02:04]}  Qxc5 {[%clk 0:02:29]} 21. Rxc5 {[%clk 0:02:05]}  Bb5 {[%clk 0:02:29]} 22. Rd1 {[%clk 0:02:01]}  Rad8 {[%clk 0:02:27]} 23. Rxd8 {[%clk 0:01:43]}  Rxd8 {[%clk 0:02:27]} 24. Bxe7 {[%clk 0:01:43]}  Rd4 {[%clk 0:02:18]} 25. f3 {[%clk 0:01:39]}  h6 {[%clk 0:02:01]} 26. h4 {[%clk 0:01:32]}  a5 {[%clk 0:01:54]} 27. Rc2 {[%clk 0:01:25]}  Kh7 {[%clk 0:01:49]} 28. Kf2 {[%clk 0:01:23]}  a4 {[%clk 0:01:37]} 29. Kg3 {[%clk 0:01:22]}  Rd7 {[%clk 0:01:26]} 30. Bf6 {[%clk 0:01:19]}  Kg8 {[%clk 0:01:26]} 31. h5 {[%clk 0:01:00]}  g5 {[%clk 0:01:24]} 32. Kf2 {[%clk 0:00:43]}  Kf8 {[%clk 0:01:24]} 33. g3 {[%clk 0:00:36]}  Rd3 {[%clk 0:01:23]} 34. Rb2 {[%clk 0:00:32]}  Kg8 {[%clk 0:01:15]} 35. Rc2 {[%clk 0:00:32]}  Kf8 {[%clk 0:01:15]} 36. Rb2 {[%clk 0:00:29]}  Kg8 {[%clk 0:01:15]} 37. Rc2 {[%clk 0:00:29]}  Kf8 {[%clk 0:01:15]} 1/2-1/2


[Site "https://www.chess.com"]

[Event "Titled Tuesday Blitz November 07 Early 2023"]
[White "Beerdsen, Thomas"]
[Black "Deac, Bogdan-Daniel"]
[WhiteFideId "1030108"]
[BlackFideId "1226380"]
[WhiteElo "2842"]
[BlackElo "2990"]
[Result "1-0"]
[Round "9"]
[TimeControl "180+1"]
[Date "2023.11.07"]
[WhiteClock "0:00:27"]
[BlackClock "0:00:01"]
[Board "14"]

1. e4 {[%clk 0:03:00]}  c5 {[%clk 0:02:59]} 2. Nf3 {[%clk 0:03:00]}  e6 {[%clk 0:02:59]} 3. d4 {[%clk 0:03:00]}  cxd4 {[%clk 0:03:00]} 4. Bg5 {[%clk 0:03:00]}  Qa5+ {[%clk 0:02:55]} 5. c3 {[%clk 0:03:00]}  h6 {[%clk 0:02:47]} 6. Bd2 {[%clk 0:02:58]}  dxc3 {[%clk 0:02:46]} 7. Nxc3 {[%clk 0:02:55]}  Nc6 {[%clk 0:02:46]} 8. Bb5 {[%clk 0:02:47]}  Qc7 {[%clk 0:02:42]} 9. O-O {[%clk 0:02:44]}  Nf6 {[%clk 0:02:39]} 10. Rc1 {[%clk 0:02:42]}  d6 {[%clk 0:02:33]} 11. Bf4 {[%clk 0:02:28]}  Bd7 {[%clk 0:01:53]} 12. Nd5 {[%clk 0:02:24]}  Qb8 {[%clk 0:00:50]} 13. Re1 {[%clk 0:02:19]}  a6 {[%clk 0:00:46]} 14. Ba4 {[%clk 0:01:40]}  Qd8 {[%clk 0:00:35]} 15. Nxf6+ {[%clk 0:01:04]}  Qxf6 {[%clk 0:00:35]} 16. Bxd6 {[%clk 0:01:05]}  Bxd6 {[%clk 0:00:30]} 17. Qxd6 {[%clk 0:01:06]}  Rc8 {[%clk 0:00:21]} 18. Red1 {[%clk 0:00:42]}  Qe7 {[%clk 0:00:20]} 19. Ne5 {[%clk 0:00:30]}  Qxd6 {[%clk 0:00:05]} 20. Rxd6 {[%clk 0:00:31]}  Rc7 {[%clk 0:00:04]} 21. Nxd7 {[%clk 0:00:27]}  Rxd7 {[%clk 0:00:01]} 22. Rcxc6 {[%clk 0:00:27]} 1-0


[Site "https://www.chess.com"]

[Event "Titled Tuesday Blitz November 07 Early 2023"]
[White "Ibarra Jerez, Jose Carlos"]
[Black "CrazyAdvenTures"]
[WhiteFideId "2226332"]
[WhiteElo "2987"]
[BlackElo "2825"]
[Result "1-0"]
[Round "9"]
[TimeControl "180+1"]
[Date "2023.11.07"]
[WhiteClock "0:00:12"]
[BlackClock "0:00:02"]
[Board "15"]

1. e4 {[%clk 0:03:00]}  c5 {[%clk 0:03:00]} 2. Nf3 {[%clk 0:02:58]}  Nc6 {[%clk 0:03:00]} 3. Nc3 {[%clk 0:02:57]}  e5 {[%clk 0:02:59]} 4. Bc4 {[%clk 0:02:56]}  g6 {[%clk 0:02:59]} 5. d3 {[%clk 0:02:54]}  h6 {[%clk 0:03:00]} 6. h4 {[%clk 0:02:54]}  d6 {[%clk 0:02:58]} 7. Nd2 {[%clk 0:02:51]}  Nf6 {[%clk 0:02:44]} 8. Nf1 {[%clk 0:02:40]}  Bg4 {[%clk 0:02:23]} 9. Qd2 {[%clk 0:02:34]}  Bg7 {[%clk 0:02:16]} 10. Ne3 {[%clk 0:02:33]}  Be6 {[%clk 0:02:17]} 11. Ncd5 {[%clk 0:02:26]}  O-O {[%clk 0:02:10]} 12. Nxf6+ {[%clk 0:02:19]}  Qxf6 {[%clk 0:02:11]} 13. h5 {[%clk 0:02:12]}  g5 {[%clk 0:02:00]} 14. Qd1 {[%clk 0:02:09]}  Rab8 {[%clk 0:01:51]} 15. a4 {[%clk 0:02:06]}  a6 {[%clk 0:01:46]} 16. a5 {[%clk 0:02:04]}  Ne7 {[%clk 0:01:26]} 17. Ng4 {[%clk 0:01:58]}  Bxg4 {[%clk 0:01:26]} 18. Qxg4 {[%clk 0:01:59]}  Rfd8 {[%clk 0:01:24]} 19. Rh3 {[%clk 0:01:57]}  d5 {[%clk 0:01:21]} 20. exd5 {[%clk 0:01:50]}  Nxd5 {[%clk 0:01:22]} 21. Rf3 {[%clk 0:01:50]}  Qe7 {[%clk 0:01:18]} 22. Kf1 {[%clk 0:01:42]}  Nf6 {[%clk 0:01:13]} 23. Qf5 {[%clk 0:01:40]}  Rd4 {[%clk 0:00:51]} 24. g3 {[%clk 0:01:27]}  e4 {[%clk 0:00:24]} 25. Re3 {[%clk 0:01:27]}  Nxh5 {[%clk 0:00:20]} 26. c3 {[%clk 0:01:25]}  Rxc4 {[%clk 0:00:13]} 27. dxc4 {[%clk 0:01:26]}  Re8 {[%clk 0:00:14]} 28. Bd2 {[%clk 0:01:22]}  Qd6 {[%clk 0:00:10]} 29. Rd1 {[%clk 0:01:13]}  Re5 {[%clk 0:00:10]} 30. Qc8+ {[%clk 0:01:13]}  Kh7 {[%clk 0:00:11]} 31. Qxb7 {[%clk 0:00:59]}  Qe6 {[%clk 0:00:11]} 32. Kg1 {[%clk 0:00:44]}  Nf4 {[%clk 0:00:08]} 33. Be1 {[%clk 0:00:22]}  Qg4 {[%clk 0:00:06]} 34. Rd7 {[%clk 0:00:18]}  Nh3+ {[%clk 0:00:06]} 35. Kf1 {[%clk 0:00:16]}  Nf4 {[%clk 0:00:02]} 36. gxf4 {[%clk 0:00:16]}  gxf4 {[%clk 0:00:02]} 37. Rxe4 {[%clk 0:00:14]}  Qh3+ {[%clk 0:00:02]} 38. Ke2 {[%clk 0:00:14]}  f3+ {[%clk 0:00:02]} 39. Kd3 {[%clk 0:00:14]}  Qf5 {[%clk 0:00:01]} 40. Rxf7 {[%clk 0:00:12]}  Qg6 {[%clk 0:00:01]} 41. Rxg7+ {[%clk 0:00:12]}  Qxg7 {[%clk 0:00:02]} 42. Qxg7+ {[%clk 0:00:12]} 1-0


[Site "https://www.chess.com"]

[Event "Titled Tuesday Blitz November 07 Early 2023"]
[White "Elsa167"]
[Black "Javakhadze, Zurab"]
[BlackFideId "13603647"]
[WhiteElo "2983"]
[BlackElo "2799"]
[Result "1-0"]
[Round "9"]
[TimeControl "180+1"]
[Date "2023.11.07"]
[WhiteClock "0:00:04"]
[BlackClock "0:00:00"]
[Board "16"]

1. e4 {[%clk 0:03:00]}  c5 {[%clk 0:02:57]} 2. Nf3 {[%clk 0:02:58]}  d6 {[%clk 0:02:57]} 3. d4 {[%clk 0:02:58]}  cxd4 {[%clk 0:02:58]} 4. Qxd4 {[%clk 0:02:58]}  Nf6 {[%clk 0:02:59]} 5. Nc3 {[%clk 0:02:58]}  a6 {[%clk 0:02:58]} 6. e5 {[%clk 0:02:58]}  Nc6 {[%clk 0:02:57]} 7. Qa4 {[%clk 0:02:58]}  dxe5 {[%clk 0:02:49]} 8. Nxe5 {[%clk 0:02:59]}  Bd7 {[%clk 0:02:48]} 9. Nxd7 {[%clk 0:02:59]}  Qxd7 {[%clk 0:02:49]} 10. Be3 {[%clk 0:02:59]}  g6 {[%clk 0:02:40]} 11. Rd1 {[%clk 0:02:54]}  Qg4 {[%clk 0:02:30]} 12. Nd5 {[%clk 0:02:04]}  O-O-O {[%clk 0:02:00]} 13. Nb6+ {[%clk 0:01:48]}  Kc7 {[%clk 0:01:53]} 14. Rxd8 {[%clk 0:01:33]}  Kxd8 {[%clk 0:01:38]} 15. Qc4 {[%clk 0:00:40]}  Qxc4 {[%clk 0:00:53]} 16. Bxc4 {[%clk 0:00:40]}  e6 {[%clk 0:00:53]} 17. Ke2 {[%clk 0:00:33]}  Kc7 {[%clk 0:00:51]} 18. Rd1 {[%clk 0:00:30]}  Be7 {[%clk 0:00:38]} 19. Bb3 {[%clk 0:00:24]}  Rd8 {[%clk 0:00:17]} 20. Rxd8 {[%clk 0:00:23]}  Bxd8 {[%clk 0:00:16]} 21. Nc4 {[%clk 0:00:21]}  Nd5 {[%clk 0:00:16]} 22. Bd2 {[%clk 0:00:18]}  Nd4+ {[%clk 0:00:13]} 23. Kd3 {[%clk 0:00:19]}  Nxb3 {[%clk 0:00:09]} 24. axb3 {[%clk 0:00:20]}  Bf6 {[%clk 0:00:08]} 25. c3 {[%clk 0:00:20]}  g5 {[%clk 0:00:05]} 26. g4 {[%clk 0:00:18]}  h6 {[%clk 0:00:05]} 27. h3 {[%clk 0:00:19]}  b5 {[%clk 0:00:03]} 28. Na3 {[%clk 0:00:18]}  Be7 {[%clk 0:00:03]} 29. Nc2 {[%clk 0:00:18]}  Bd6 {[%clk 0:00:04]} 30. c4 {[%clk 0:00:15]}  Nf6 {[%clk 0:00:03]} 31. Bc3 {[%clk 0:00:12]}  Nd7 {[%clk 0:00:04]} 32. Bg7 {[%clk 0:00:12]}  Nc5+ {[%clk 0:00:04]} 33. Ke2 {[%clk 0:00:09]}  Nxb3 {[%clk 0:00:03]} 34. cxb5 {[%clk 0:00:10]}  axb5 {[%clk 0:00:04]} 35. Bxh6 {[%clk 0:00:10]}  f6 {[%clk 0:00:05]} 36. Bg7 {[%clk 0:00:10]}  Be5 {[%clk 0:00:05]} 37. h4 {[%clk 0:00:07]}  gxh4 {[%clk 0:00:04]} 38. g5 {[%clk 0:00:08]}  h3 {[%clk 0:00:04]} 39. Bxf6 {[%clk 0:00:02]}  Bxf6 {[%clk 0:00:04]} 40. gxf6 {[%clk 0:00:03]}  h2 {[%clk 0:00:04]} 41. f7 {[%clk 0:00:04]}  h1=Q {[%clk 0:00:05]} 42. f8=Q {[%clk 0:00:04]}  Nc1+ {[%clk 0:00:03]} 43. Kd2 {[%clk 0:00:04]}  Nb3+ {[%clk 0:00:03]} 44. Kc3 {[%clk 0:00:05]}  Qd5 {[%clk 0:00:02]} 45. Ne3 {[%clk 0:00:03]}  b4+ {[%clk 0:00:00]} 46. Kxb4 {[%clk 0:00:04]} 1-0


[Site "https://www.chess.com"]

[Event "Titled Tuesday Blitz November 07 Early 2023"]
[White "Korchmar, Vasiliy"]
[Black "Rasulov, Vugar"]
[WhiteFideId "24131750"]
[BlackFideId "13402390"]
[WhiteElo "2756"]
[BlackElo "2971"]
[Result "0-1"]
[Round "9"]
[TimeControl "180+1"]
[Date "2023.11.07"]
[WhiteClock "0:00:00"]
[BlackClock "0:00:42"]
[Board "17"]

1. e4 {[%clk 0:03:00]}  e5 {[%clk 0:02:58]} 2. Nf3 {[%clk 0:03:01]}  Nc6 {[%clk 0:02:59]} 3. Nc3 {[%clk 0:03:01]}  Nf6 {[%clk 0:02:59]} 4. Bb5 {[%clk 0:03:02]}  Bd6 {[%clk 0:02:58]} 5. d3 {[%clk 0:03:01]}  h6 {[%clk 0:02:57]} 6. Ba4 {[%clk 0:02:58]}  a6 {[%clk 0:02:55]} 7. Be3 {[%clk 0:02:54]}  b5 {[%clk 0:02:44]} 8. Bb3 {[%clk 0:02:54]}  Na5 {[%clk 0:02:45]} 9. d4 {[%clk 0:02:53]}  exd4 {[%clk 0:02:41]} 10. Nxd4 {[%clk 0:02:49]}  O-O {[%clk 0:02:36]} 11. f4 {[%clk 0:02:36]}  Bb4 {[%clk 0:02:23]} 12. e5 {[%clk 0:02:27]}  Ne4 {[%clk 0:02:20]} 13. Qd3 {[%clk 0:01:45]}  Bb7 {[%clk 0:02:16]} 14. O-O {[%clk 0:01:44]}  Bxc3 {[%clk 0:02:15]} 15. bxc3 {[%clk 0:01:45]}  c5 {[%clk 0:02:14]} 16. f5 {[%clk 0:01:05]}  cxd4 {[%clk 0:02:09]} 17. cxd4 {[%clk 0:01:03]}  d5 {[%clk 0:01:53]} 18. Rf3 {[%clk 0:00:52]}  Nc4 {[%clk 0:01:51]} 19. Bf4 {[%clk 0:00:36]}  f6 {[%clk 0:01:48]} 20. e6 {[%clk 0:00:27]}  Qe7 {[%clk 0:01:31]} 21. Raf1 {[%clk 0:00:26]}  a5 {[%clk 0:01:28]} 22. Rh3 {[%clk 0:00:21]}  a4 {[%clk 0:01:26]} 23. Bxc4 {[%clk 0:00:22]}  dxc4 {[%clk 0:01:23]} 24. Qe3 {[%clk 0:00:22]}  Ng5 {[%clk 0:01:22]} 25. Rg3 {[%clk 0:00:14]}  Rae8 {[%clk 0:00:58]} 26. h4 {[%clk 0:00:14]}  Nxe6 {[%clk 0:00:59]} 27. Bxh6 {[%clk 0:00:01]}  Kh7 {[%clk 0:00:52]} 28. Rg6 {[%clk 0:00:00]}  Ng5 {[%clk 0:00:42]} 0-1


[Site "https://www.chess.com"]

[Event "Titled Tuesday Blitz November 07 Early 2023"]
[White "Galchenko, Matvey"]
[Black "GaiozNigalidze"]
[WhiteFideId "24175480"]
[WhiteElo "2945"]
[BlackElo "2726"]
[Result "1/2-1/2"]
[Round "9"]
[TimeControl "180+1"]
[Date "2023.11.07"]
[WhiteClock "0:00:25"]
[BlackClock "0:00:24"]
[Board "18"]

1. f4 {[%clk 0:02:58]}  c5 {[%clk 0:02:57]} 2. Nf3 {[%clk 0:02:58]}  Nc6 {[%clk 0:02:58]} 3. g3 {[%clk 0:02:58]}  d5 {[%clk 0:02:57]} 4. Bg2 {[%clk 0:02:58]}  g6 {[%clk 0:02:57]} 5. O-O {[%clk 0:02:59]}  Bg7 {[%clk 0:02:58]} 6. d3 {[%clk 0:03:00]}  Nf6 {[%clk 0:02:58]} 7. Nc3 {[%clk 0:03:00]}  d4 {[%clk 0:02:58]} 8. Na4 {[%clk 0:03:00]}  Nd7 {[%clk 0:02:58]} 9. c4 {[%clk 0:03:00]}  dxc3 {[%clk 0:02:54]} 10. Nxc3 {[%clk 0:03:00]}  O-O {[%clk 0:02:53]} 11. e4 {[%clk 0:02:48]}  b6 {[%clk 0:02:53]} 12. Be3 {[%clk 0:02:47]}  Ba6 {[%clk 0:02:53]} 13. e5 {[%clk 0:02:45]}  Nb4 {[%clk 0:02:49]} 14. Ne1 {[%clk 0:02:42]}  Rc8 {[%clk 0:02:44]} 15. Rf2 {[%clk 0:02:37]}  Nb8 {[%clk 0:02:39]} 16. d4 {[%clk 0:02:21]}  cxd4 {[%clk 0:02:34]} 17. Bxd4 {[%clk 0:02:10]}  N8c6 {[%clk 0:02:21]} 18. Be3 {[%clk 0:02:09]}  Qxd1 {[%clk 0:02:10]} 19. Rxd1 {[%clk 0:02:10]}  Rfd8 {[%clk 0:02:11]} 20. Rfd2 {[%clk 0:02:03]}  Rxd2 {[%clk 0:02:09]} 21. Rxd2 {[%clk 0:02:04]}  Nb8 {[%clk 0:01:21]} 22. a3 {[%clk 0:01:48]}  N4c6 {[%clk 0:01:21]} 23. b4 {[%clk 0:01:16]}  Bc4 {[%clk 0:01:21]} 24. Nc2 {[%clk 0:01:07]}  Rd8 {[%clk 0:01:13]} 25. Kf2 {[%clk 0:01:00]}  f6 {[%clk 0:01:06]} 26. b5 {[%clk 0:00:43]}  Rxd2+ {[%clk 0:01:04]} 27. Bxd2 {[%clk 0:00:44]}  Na5 {[%clk 0:01:03]} 28. exf6 {[%clk 0:00:29]}  Bxf6 {[%clk 0:01:03]} 29. Ne3 {[%clk 0:00:18]}  Bxc3 {[%clk 0:00:49]} 30. Bxc3 {[%clk 0:00:19]}  Bxb5 {[%clk 0:00:49]} 31. Bd5+ {[%clk 0:00:19]}  Kf8 {[%clk 0:00:49]} 32. h4 {[%clk 0:00:18]}  Nac6 {[%clk 0:00:44]} 33. g4 {[%clk 0:00:18]}  Nd8 {[%clk 0:00:42]} 34. h5 {[%clk 0:00:13]}  gxh5 {[%clk 0:00:42]} 35. gxh5 {[%clk 0:00:14]}  Bc6 {[%clk 0:00:42]} 36. Bb3 {[%clk 0:00:14]}  Be4 {[%clk 0:00:42]} 37. f5 {[%clk 0:00:12]}  Nf7 {[%clk 0:00:39]} 38. Kg3 {[%clk 0:00:12]}  Nc6 {[%clk 0:00:39]} 39. Kf4 {[%clk 0:00:13]}  Bd3 {[%clk 0:00:39]} 40. Bd5 {[%clk 0:00:10]}  Ncd8 {[%clk 0:00:38]} 41. Bb4 {[%clk 0:00:10]}  a5 {[%clk 0:00:37]} 42. Bc3 {[%clk 0:00:11]}  Nd6 {[%clk 0:00:37]} 43. Bd4 {[%clk 0:00:11]}  b5 {[%clk 0:00:36]} 44. Bb6 {[%clk 0:00:10]}  N8b7 {[%clk 0:00:37]} 45. h6 {[%clk 0:00:08]}  b4 {[%clk 0:00:35]} 46. a4 {[%clk 0:00:07]}  Ke8 {[%clk 0:00:21]} 47. Bg8 {[%clk 0:00:06]}  Kf8 {[%clk 0:00:18]} 48. Bxh7 {[%clk 0:00:05]}  b3 {[%clk 0:00:19]} 49. Bd4 {[%clk 0:00:05]}  Nc5 {[%clk 0:00:19]} 50. Bg6 {[%clk 0:00:03]}  Nf7 {[%clk 0:00:19]} 51. h7 {[%clk 0:00:03]}  e5+ {[%clk 0:00:17]} 52. fxe6 {[%clk 0:00:02]}  Bxg6 {[%clk 0:00:17]} 53. exf7 {[%clk 0:00:02]}  Bxh7 {[%clk 0:00:17]} 54. Bxc5+ {[%clk 0:00:03]}  Kxf7 {[%clk 0:00:17]} 55. Bd4 {[%clk 0:00:03]}  Ke7 {[%clk 0:00:13]} 56. Ke5 {[%clk 0:00:03]}  Bg6 {[%clk 0:00:13]} 57. Nd5+ {[%clk 0:00:02]}  Kd8 {[%clk 0:00:13]} 58. Nc3 {[%clk 0:00:01]}  Be8 {[%clk 0:00:13]} 59. Bb6+ {[%clk 0:00:02]}  Kc8 {[%clk 0:00:13]} 60. Bxa5 {[%clk 0:00:03]}  b2 {[%clk 0:00:14]} 61. Bb4 {[%clk 0:00:03]}  Bxa4 {[%clk 0:00:14]} 62. Ba3 {[%clk 0:00:03]}  b1=Q {[%clk 0:00:14]} 63. Nxb1 {[%clk 0:00:03]}  Bc2 {[%clk 0:00:15]} 64. Nc3 {[%clk 0:00:04]}  Bb3 {[%clk 0:00:16]} 65. Kd4 {[%clk 0:00:05]}  Be6 {[%clk 0:00:15]} 66. Ne4 {[%clk 0:00:06]}  Bh3 {[%clk 0:00:16]} 67. Nd6+ {[%clk 0:00:07]}  Kb8 {[%clk 0:00:16]} 68. Nc4 {[%clk 0:00:07]}  Ka8 {[%clk 0:00:17]} 69. Ne5 {[%clk 0:00:08]}  Kb7 {[%clk 0:00:17]} 70. Bb4 {[%clk 0:00:09]}  Ka8 {[%clk 0:00:18]} 71. Nd3 {[%clk 0:00:10]}  Bg2 {[%clk 0:00:18]} 72. Nf4 {[%clk 0:00:10]}  Bh1 {[%clk 0:00:19]} 73. Kc5 {[%clk 0:00:11]}  Bb7 {[%clk 0:00:19]} 74. Kb6 {[%clk 0:00:12]}  Bh1 {[%clk 0:00:20]} 75. Ne6 {[%clk 0:00:12]}  Kb8 {[%clk 0:00:20]} 76. Bd6+ {[%clk 0:00:13]}  Kc8 {[%clk 0:00:20]} 77. Nc5 {[%clk 0:00:14]}  Kd8 {[%clk 0:00:21]} 78. Bg3 {[%clk 0:00:14]}  Ke8 {[%clk 0:00:21]} 79. Bh4 {[%clk 0:00:14]}  Kf7 {[%clk 0:00:20]} 80. Kc7 {[%clk 0:00:15]}  Bg2 {[%clk 0:00:21]} 81. Kd6 {[%clk 0:00:16]}  Bh1 {[%clk 0:00:21]} 82. Ke5 {[%clk 0:00:16]}  Bg2 {[%clk 0:00:22]} 83. Ne6 {[%clk 0:00:17]}  Ke8 {[%clk 0:00:21]} 84. Kd6 {[%clk 0:00:16]}  Kf7 {[%clk 0:00:22]} 85. Bg3 {[%clk 0:00:16]}  Bh1 {[%clk 0:00:22]} 86. Be5 {[%clk 0:00:16]}  Ke8 {[%clk 0:00:21]} 87. Ng5 {[%clk 0:00:15]}  Bg2 {[%clk 0:00:21]} 88. Ke6 {[%clk 0:00:14]}  Kd8 {[%clk 0:00:21]} 89. Bd6 {[%clk 0:00:14]}  Kc8 {[%clk 0:00:21]} 90. Ke5 {[%clk 0:00:14]}  Kb7 {[%clk 0:00:22]} 91. Ne6 {[%clk 0:00:14]}  Kc6 {[%clk 0:00:22]} 92. Nd4+ {[%clk 0:00:15]}  Kd7 {[%clk 0:00:22]} 93. Nf5 {[%clk 0:00:16]}  Bh1 {[%clk 0:00:23]} 94. Ne3 {[%clk 0:00:17]}  Bf3 {[%clk 0:00:23]} 95. Nc4 {[%clk 0:00:17]}  Bh1 {[%clk 0:00:23]} 96. Nd2 {[%clk 0:00:18]}  Kc6 {[%clk 0:00:23]} 97. Nb3 {[%clk 0:00:18]}  Kd7 {[%clk 0:00:24]} 98. Nd4 {[%clk 0:00:19]}  Bg2 {[%clk 0:00:23]} 99. Ne2 {[%clk 0:00:19]}  Bh1 {[%clk 0:00:23]} 100. Nf4 {[%clk 0:00:20]}  Bf3 {[%clk 0:00:23]} 101. Bc5 {[%clk 0:00:19]}  Bh1 {[%clk 0:00:24]} 102. Kd4 {[%clk 0:00:20]}  Kc6 {[%clk 0:00:24]} 103. Nd3 {[%clk 0:00:21]}  Kd7 {[%clk 0:00:24]} 104. Ne5+ {[%clk 0:00:21]}  Ke6 {[%clk 0:00:24]} 105. Ng4 {[%clk 0:00:22]}  Bg2 {[%clk 0:00:24]} 106. Nf2 {[%clk 0:00:22]}  Bf3 {[%clk 0:00:24]} 107. Nd3 {[%clk 0:00:23]}  Ba8 {[%clk 0:00:24]} 108. Ke3 {[%clk 0:00:23]}  Kd5 {[%clk 0:00:24]} 109. Bd4 {[%clk 0:00:23]}  Ke6 {[%clk 0:00:24]} 110. Nf4+ {[%clk 0:00:24]}  Kf5 {[%clk 0:00:24]} 111. Ne2 {[%clk 0:00:25]}  Bb7 {[%clk 0:00:24]} 112. Ng3+ {[%clk 0:00:25]}  Ke6 {[%clk 0:00:24]} 113. Nh5 {[%clk 0:00:25]} 1/2-1/2


[Site "https://www.chess.com"]

[Event "Titled Tuesday Blitz November 07 Early 2023"]
[White "Bauman_Guy"]
[Black "NovozhilovSemen"]
[WhiteElo "2921"]
[BlackElo "2719"]
[Result "0-1"]
[Round "9"]
[TimeControl "180+1"]
[Date "2023.11.07"]
[WhiteClock "0:00:13"]
[BlackClock "0:00:15"]
[Board "19"]

1. e4 {[%clk 0:02:08]}  c5 {[%clk 0:02:59]} 2. Nf3 {[%clk 0:02:08]}  Nc6 {[%clk 0:02:59]} 3. d4 {[%clk 0:02:08]}  cxd4 {[%clk 0:02:59]} 4. Nxd4 {[%clk 0:02:09]}  Nf6 {[%clk 0:03:00]} 5. Nc3 {[%clk 0:02:10]}  d6 {[%clk 0:03:00]} 6. Bg5 {[%clk 0:02:09]}  e6 {[%clk 0:02:59]} 7. Bb5 {[%clk 0:02:09]}  Bd7 {[%clk 0:02:57]} 8. Bxc6 {[%clk 0:02:10]}  bxc6 {[%clk 0:02:58]} 9. Qf3 {[%clk 0:02:11]}  h6 {[%clk 0:02:45]} 10. Bh4 {[%clk 0:02:10]}  Be7 {[%clk 0:02:39]} 11. e5 {[%clk 0:02:09]}  Nd5 {[%clk 0:02:28]} 12. Bxe7 {[%clk 0:02:07]}  Qxe7 {[%clk 0:02:28]} 13. Qg3 {[%clk 0:02:07]}  f5 {[%clk 0:01:59]} 14. exd6 {[%clk 0:01:58]}  Qf6 {[%clk 0:01:58]} 15. Nb3 {[%clk 0:01:52]}  f4 {[%clk 0:01:17]} 16. Qd3 {[%clk 0:01:47]}  Qe5+ {[%clk 0:01:15]} 17. Ne4 {[%clk 0:01:38]}  O-O {[%clk 0:01:07]} 18. O-O {[%clk 0:01:35]}  f3 {[%clk 0:01:07]} 19. g3 {[%clk 0:01:32]}  Qf5 {[%clk 0:01:03]} 20. Rfe1 {[%clk 0:01:30]}  Qg4 {[%clk 0:01:00]} 21. Kh1 {[%clk 0:01:23]}  e5 {[%clk 0:00:51]} 22. Nbc5 {[%clk 0:01:07]}  Bf5 {[%clk 0:00:49]} 23. Qf1 {[%clk 0:00:49]}  Rab8 {[%clk 0:00:43]} 24. b3 {[%clk 0:00:46]}  Rb4 {[%clk 0:00:41]} 25. c4 {[%clk 0:00:45]}  Nf6 {[%clk 0:00:35]} 26. Nxf6+ {[%clk 0:00:44]}  gxf6 {[%clk 0:00:35]} 27. Rad1 {[%clk 0:00:43]}  Rbb8 {[%clk 0:00:32]} 28. Re3 {[%clk 0:00:34]}  Qh5 {[%clk 0:00:21]} 29. Rd2 {[%clk 0:00:30]}  Rbd8 {[%clk 0:00:18]} 30. Qd1 {[%clk 0:00:27]}  Bg4 {[%clk 0:00:18]} 31. d7 {[%clk 0:00:16]}  Qh3 {[%clk 0:00:18]} 32. Rxf3 {[%clk 0:00:14]}  Bxf3+ {[%clk 0:00:14]} 33. Qxf3 {[%clk 0:00:13]}  Qf1# {[%clk 0:00:15]} 0-1


[Site "https://www.chess.com"]

[Event "Titled Tuesday Blitz November 07 Early 2023"]
[White "Kislinsky, Alexey"]
[Black "Alexandre, Anne Shopie Elizabeth"]
[WhiteFideId "14108801"]
[BlackFideId "11902418"]
[WhiteElo "2668"]
[BlackElo "2863"]
[Result "1/2-1/2"]
[Round "9"]
[TimeControl "180+1"]
[Date "2023.11.07"]
[WhiteClock "0:00:56"]
[BlackClock "0:00:08"]
[Board "22"]

1. e4 {[%clk 0:03:00]}  c5 {[%clk 0:02:59]} 2. c3 {[%clk 0:03:00]}  d5 {[%clk 0:02:55]} 3. exd5 {[%clk 0:03:01]}  Qxd5 {[%clk 0:02:56]} 4. d4 {[%clk 0:03:02]}  g6 {[%clk 0:02:56]} 5. Nf3 {[%clk 0:02:59]}  Bg7 {[%clk 0:02:55]} 6. Nbd2 {[%clk 0:02:58]}  cxd4 {[%clk 0:02:48]} 7. Bc4 {[%clk 0:02:58]}  Qd8 {[%clk 0:02:42]} 8. Nxd4 {[%clk 0:02:57]}  Nf6 {[%clk 0:02:41]} 9. O-O {[%clk 0:02:56]}  O-O {[%clk 0:02:42]} 10. Re1 {[%clk 0:02:56]}  Nbd7 {[%clk 0:02:40]} 11. N2f3 {[%clk 0:02:54]}  Nb6 {[%clk 0:02:38]} 12. Bb3 {[%clk 0:02:53]}  e6 {[%clk 0:02:26]} 13. Bg5 {[%clk 0:02:49]}  h6 {[%clk 0:02:24]} 14. Bh4 {[%clk 0:02:49]}  Nbd5 {[%clk 0:02:12]} 15. Ne5 {[%clk 0:02:44]}  Ne7 {[%clk 0:02:05]} 16. Qf3 {[%clk 0:02:39]}  g5 {[%clk 0:02:02]} 17. Bg3 {[%clk 0:02:39]}  Nfd5 {[%clk 0:01:43]} 18. h4 {[%clk 0:02:35]}  f6 {[%clk 0:01:37]} 19. Nd3 {[%clk 0:02:31]}  e5 {[%clk 0:01:27]} 20. Nc2 {[%clk 0:02:22]}  Be6 {[%clk 0:01:22]} 21. hxg5 {[%clk 0:02:22]}  hxg5 {[%clk 0:01:23]} 22. Rad1 {[%clk 0:02:06]}  Qb6 {[%clk 0:01:08]} 23. c4 {[%clk 0:01:43]}  Nc7 {[%clk 0:01:08]} 24. Ne3 {[%clk 0:01:40]}  Rad8 {[%clk 0:00:57]} 25. Nc1 {[%clk 0:01:33]}  Qc6 {[%clk 0:00:50]} 26. Qe2 {[%clk 0:01:27]}  f5 {[%clk 0:00:20]} 27. Nd5 {[%clk 0:01:23]}  Nexd5 {[%clk 0:00:20]} 28. cxd5 {[%clk 0:01:24]}  Bxd5 {[%clk 0:00:21]} 29. Bxe5 {[%clk 0:01:24]}  Rfe8 {[%clk 0:00:19]} 30. Nd3 {[%clk 0:01:22]}  Bxb3 {[%clk 0:00:19]} 31. axb3 {[%clk 0:01:21]}  Qb5 {[%clk 0:00:16]} 32. Qh5 {[%clk 0:01:13]}  Rxd3 {[%clk 0:00:11]} 33. Bxg7 {[%clk 0:01:09]}  Rxd1 {[%clk 0:00:09]} 34. Rxd1 {[%clk 0:01:06]}  Kxg7 {[%clk 0:00:08]} 35. Qxg5+ {[%clk 0:01:03]}  Kf7 {[%clk 0:00:09]} 36. Qh5+ {[%clk 0:01:03]}  Kg7 {[%clk 0:00:09]} 37. Qg5+ {[%clk 0:01:02]}  Kf7 {[%clk 0:00:09]} 38. Qh5+ {[%clk 0:01:00]}  Kg7 {[%clk 0:00:08]} 39. Qg5+ {[%clk 0:00:56]} 1/2-1/2


[Site "https://www.chess.com"]